bitfinex-derivatives/quotes_ETHF0:USTF0_20240910
["timestamp","ask_amount","ask_price","bid_price","bid_amount"]
[1725994281963,1.52124379,2373.1,2372.4,1.05373]
[1725994282267,0.42137,2373.1,2372.8,0.4214]
[1725994282464,0.42138,2373.0,2372.4,1.05373]
[1725994282781,0.42139,2373.0,2372.7,0.42142]
[1725994282960,2.15327379,2373.2,2372.3,1.43345]
[1725994283163,1.05346,2373.0,2372.5,0.42146]
[1725994283362,1.05346,2373.0,2372.3,0.3797]
[1725994283363,1.05356,2372.8,2372.3,0.8012]
[1725994283566,1.05356,2372.8,2372.3,0.3797]
[1725994283567,0.42149,2372.4,2372.3,0.3797]
[1725994283762,1.09987379,2372.6,2372.3,0.3797]
[1725994284057,0.42149,2372.4,2372.3,0.3797]
[1725994284461,1.52133379,2372.6,2372.3,0.8012]
[1725994284666,0.42146,2372.6,2372.3,0.8012]
[1725994285362,2.15345379,2372.8,2372.3,0.8012]
[1725994285363,2.15345379,2372.8,2372.3,0.3797]
[1725994285564,0.42148,2372.5,2372.3,0.3797]
[1725994285757,0.42149,2372.4,2372.3,0.3797]
[1725994286156,2.15346379,2372.7,2372.3,0.3797]
[1725994286157,0.42148,2372.5,2372.3,0.3797]
[1725994286465,0.42146,2372.6,2372.3,0.3797]
[1725994286856,1.09987379,2372.7,2371.4,1.08078908]
[1725994287056,1.05377,2372.3,2371.7,0.4014]
[1725994287253,0.42157,2372.0,2371.7,0.4014]
[1725994287557,0.42157,2372.0,2371.8,40.8]
[1725994287953,0.42157,2372.0,2371.7,0.82301]
[1725994288155,0.42157,2372.0,2371.7,0.4014]
[1725994288366,0.42156,2372.0,2371.7,0.82301]
[1725994288663,0.42152,2372.2,2371.8,0.42159]
[1725994288868,1.09987379,2372.3,2371.7,0.4014]
[1725994289060,1.09987379,2372.3,2371.0,4.04]
[1725994289061,1.05394,2372.0,2371.0,4.04]
[1725994289255,0.42161,2371.8,2371.4,0.42166]
[1725994289663,2.492184,2371.7,2371.5,0.42164]
[1725994289857,2.492184,2371.7,2371.4,40.8]
[1725994290062,2.492184,2371.7,2371.5,0.42164]
[1725994290361,2.492184,2371.7,2371.6,0.42163]
[1725994290567,2.492184,2371.7,2371.6,4.63843]
[1725994291465,0.996284,2371.7,2371.6,10.63843]
[1725994291671,1.09987379,2372.5,2372.0,0.42156]
[1725994291858,0.42148,2372.5,2372.1,0.42154]
[1725994292571,0.42149,2372.4,2372.1,0.42154]
[1725994292860,1.09987379,2372.6,2372.1,0.42153]
[1725994293066,0.42148,2372.5,2372.1,0.42153]
[1725994293264,0.42149,2372.4,2372.0,0.42155]
[1725994293462,1.09987379,2372.6,2372.0,0.42155]
[1725994293669,0.42151,2372.3,2372.0,0.42155]
[1725994294068,0.42151,2372.3,2371.7,0.3682]
[1725994294269,0.42151,2372.3,2372.0,0.42155]
[1725994294572,0.42148,2372.5,2371.7,0.3682]
[1725994294767,0.42151,2372.3,2372.0,0.42155]
[1725994294964,0.4215,2372.4,2372.1,0.42154]
[1725994295161,0.42148,2372.5,2372.2,0.42152]
[1725994295463,1.50367379,2372.6,2372.0,0.42155]
[1725994295464,0.42151,2372.3,2372.0,0.42155]
[1725994296167,0.4215,2372.4,2371.8,0.7634]
[1725994296365,0.4215,2372.4,2372.1,0.42153]
[1725994296566,0.42148,2372.5,2372.2,0.42152]
[1725994296762,0.42149,2372.4,2372.1,0.42153]
[1725994297670,0.42148,2372.5,2372.2,0.42152]
[1725994297969,0.42149,2372.4,2372.1,0.42153]
[1725994298266,0.4215,2372.4,2372.1,0.42152]
[1725994298473,0.4038,2372.6,2372.1,4.2152]
[1725994298770,1.09987379,2373.1,2372.4,3.29]
[1725994299068,2.70321068,2373.2,2372.5,41.5448]
[1725994299069,0.42139,2373.0,2372.5,41.5448]
[1725994299661,0.42139,2373.0,2372.7,0.42142]
[1725994299856,2.15327379,2373.2,2372.5,41.5448]
[1725994299857,1.05351,2372.9,2372.5,41.5448]
[1725994300071,0.42145,2372.6,2372.5,41.5448]
[1725994300270,0.42151,2372.3,2372.1,0.3986]
[1725994300573,1.05364,2372.6,2372.1,0.3986]
[1725994300574,1.05368,2372.5,2372.1,0.82013]
[1725994300766,0.4215,2372.4,2372.2,40.8]
[1725994301166,0.42148,2372.5,2372.2,41.22152]
[1725994301370,0.42148,2372.5,2372.2,40.8]
[1725994301564,1.05364,2372.6,2372.2,40.8]
[1725994301763,0.42151,2372.3,2372.2,40.8]
[1725994302463,4.05,2372.3,2371.4,0.3986]
[1725994302666,1.10132665,2372.0,2371.4,0.3986]
[1725994302969,0.42161,2371.7,2371.4,0.3986]
[1725994303271,1.10132665,2371.8,2371.4,0.3986]
[1725994303272,0.4216,2371.8,2371.4,0.3986]
[1725994305371,0.3859,2371.9,2371.4,0.82026]
[1725994305574,0.3859,2371.9,2371.5,0.42164]
[1725994306171,0.3859,2371.9,2371.4,0.3986]
[1725994306172,1.52285665,2372.2,2371.6,0.42162]
[1725994306671,0.4216,2371.8,2371.4,0.3986]
[1725994306873,0.42156,2372.0,2371.4,0.3986]
[1725994307073,1.10132665,2372.1,2371.4,0.3986]
[1725994307074,0.4216,2371.8,2371.4,0.3986]
[1725994307276,1.10132665,2372.1,2371.4,0.82026]
[1725994307576,0.42157,2372.0,2371.4,0.82026]
[1725994307977,0.42157,2372.0,2371.5,0.42164]
[1725994308176,1.10132665,2372.2,2371.4,0.3986]
[1725994308375,1.10132665,2372.1,2371.4,0.3986]
[1725994308572,0.42161,2371.8,2371.4,0.3986]
[1725994308773,0.4216,2371.8,2371.4,0.3986]
[1725994309075,1.10132665,2372.2,2371.5,4.2168]
[1725994309277,0.42157,2372.0,2371.6,0.42163]
[1725994309573,0.42157,2372.0,2371.4,4.4486]
[1725994309574,0.42158,2371.9,2371.5,0.42164]
[1725994309779,0.42156,2372.0,2371.4,4.4486]
[1725994309987,0.42156,2372.0,2371.5,0.42164]
[1725994310471,0.42158,2371.9,2371.4,0.3986]
[1725994310675,0.42157,2372.0,2371.5,0.42164]
[1725994311276,0.42157,2372.0,2371.4,0.3986]
[1725994311277,0.42158,2371.9,2371.4,0.82025]
[1725994311472,0.42157,2372.0,2371.5,0.42164]
[1725994312180,0.42155,2372.1,2371.7,0.42161]
[1725994312372,0.42155,2372.1,2371.4,0.3986]
[1725994312678,0.42155,2372.1,2371.6,0.42162]
[1725994312873,1.10132665,2372.2,2371.7,40.8]
[1725994313076,0.42155,2372.1,2371.7,40.8]
[1725994313280,1.10132665,2372.2,2371.7,40.8]
[1725994313681,0.42153,2372.2,2371.8,0.42159]
[1725994313872,0.42153,2372.2,2371.7,40.8]
[1725994313873,0.42156,2372.0,2371.7,40.8]
[1725994314275,0.42154,2372.1,2371.7,45.43761]
[1725994314471,0.42154,2372.1,2371.7,41.22161]
[1725994315372,0.42154,2372.1,2371.7,40.8]
[1725994315678,0.42154,2372.1,2371.8,0.42159]
[1725994315879,3.13111663,2372.3,2371.8,0.42159]
[1725994316076,0.42153,2372.2,2371.7,40.8]
[1725994316278,0.42153,2372.2,2371.9,0.42157]
[1725994316579,1.10132665,2372.4,2372.1,0.42153]
[1725994316780,0.42152,2372.3,2371.9,0.42156]
[1725994316978,1.10132665,2372.5,2372.0,0.42156]
[1725994317181,0.42152,2372.3,2372.0,0.42156]
[1725994317375,1.52280665,2372.5,2371.9,0.3892]
[1725994317574,0.4215,2372.4,2372.1,0.42153]
[1725994317774,0.4215,2372.4,2372.0,0.57319576]
[1725994317775,0.42148,2372.5,2372.2,0.42152]
[1725994317980,0.42154,2372.2,2372.0,0.3674]
[1725994318180,0.42152,2372.3,2372.0,0.78896]
[1725994318679,0.42149,2372.4,2372.1,0.42153]
[1725994318984,0.42151,2372.3,2372.1,0.42153]
[1725994319178,0.42149,2372.4,2372.1,0.42153]
[1725994319575,1.52280665,2372.5,2372.2,0.42152]
[1725994319878,1.52280665,2372.5,2372.0,0.3674]
[1725994319879,0.42149,2372.4,2372.0,0.3674]
[1725994320090,1.52280665,2372.5,2372.2,0.42152]
[1725994320274,1.52280665,2372.5,2372.0,0.3674]
[1725994320275,0.42153,2372.2,2372.0,0.3674]
[1725994320582,0.42152,2372.3,2372.0,0.78895]
[1725994320777,0.42154,2372.1,2371.8,0.42159]
[1725994320981,1.10132665,2372.4,2371.7,44.09]
[1725994321481,0.42155,2372.1,2371.7,44.09]
[1725994321691,0.42154,2372.2,2371.9,0.42158]
[1725994322079,1.10132665,2372.3,2371.7,44.09]
[1725994322382,1.10132665,2372.3,2371.9,0.42157]
[1725994322575,1.10132665,2372.3,2371.7,44.09]
[1725994322576,1.10132665,2372.3,2372.0,0.42155]
[1725994322778,1.52284665,2372.3,2372.0,0.42155]
[1725994322982,0.42152,2372.2,2372.0,0.42155]
[1725994323184,0.42153,2372.2,2372.0,0.42155]
[1725994323484,1.52284665,2372.3,2372.0,0.42155]
[1725994324080,1.10132665,2372.3,2371.9,3.29]
[1725994324390,2.19974758,2372.6,2372.4,0.42147]
[1725994324391,1.10132665,2372.6,2372.4,0.42147]
[1725994324581,1.90747665,2372.7,2372.1,4.34385]
[1725994324790,1.90747665,2372.7,2372.2,0.761]
[1725994324978,1.90747665,2372.7,2372.2,1.81481]
[1725994324979,0.3847,2372.7,2372.2,1.81481]
[1725994325284,0.3847,2372.7,2372.3,3.29]
[1725994325285,1.10132665,2372.7,2372.3,3.29]
[1725994325476,1.10132665,2372.7,2372.6,0.42145]
[1725994325675,1.52275665,2372.8,2372.6,0.42145]
[1725994325883,1.10132665,2372.7,2372.3,3.29]
[1725994326090,0.42148,2372.5,2372.3,0.4215]
[1725994326280,0.42149,2372.5,2372.2,1.18251]
[1725994326478,1.10132665,2372.5,2372.2,0.761]
[1725994326679,0.42151,2372.3,2372.2,0.3905]
[1725994326874,0.4215,2372.4,2372.2,0.3905]
[1725994327084,2.15501665,2372.5,2372.4,0.42149]
[1725994327085,1.10132665,2372.5,2372.4,0.42149]
[1725994327392,1.10132665,2372.8,2372.4,3.29]
[1725994327596,1.52273665,2372.9,2372.6,0.42145]
[1725994327886,1.05365,2372.6,2371.8,2.02590595]
[1725994328186,0.42155,2372.1,2371.7,40.8]
[1725994328391,1.52387811,2372.1,2371.7,40.8]
[1725994328684,1.10232811,2372.0,2371.7,41.22161]
[1725994328889,1.52387811,2372.1,2371.7,40.8]
[1725994329274,1.10232811,2372.1,2371.7,44.09]
[1725994329480,1.65349217,2372.2,2371.9,0.42157]
[1725994329481,1.10232811,2372.2,2371.9,0.42157]
[1725994329685,1.10232811,2372.2,2371.7,44.09]
[1725994329882,1.10232811,2372.2,2371.9,0.42157]
[1725994331988,1.10232811,2372.2,2372.0,0.42156]
[1725994332290,1.10232811,2372.2,2371.9,0.42157]
[1725994332488,1.10232811,2372.2,2372.1,3.71154]
[1725994332676,1.10232811,2372.4,2372.2,0.42151]
[1725994332875,1.10232811,2372.5,2372.2,0.80891]
[1725994333086,1.10232811,2372.5,2372.2,1.19601]
[1725994333288,1.10232811,2372.5,2372.3,0.42149]
[1725994333587,1.10232811,2372.6,2372.3,0.42149]
[1725994333984,1.10232811,2372.6,2372.4,0.42149]
[1725994334383,1.10232811,2372.6,2372.4,0.42148]
[1725994334585,1.10232811,2372.7,2372.5,0.42147]
[1725994334786,1.10232811,2372.6,2372.2,0.7745]
[1725994335089,1.10232811,2372.5,2372.2,1.19602]
[1725994335301,1.10232811,2372.5,2372.3,0.4215]
[1725994335486,1.10232811,2372.6,2372.3,0.4215]
[1725994335989,1.52378811,2372.6,2372.3,0.4215]
[1725994336689,1.10232811,2372.6,2372.3,0.42151]
[1725994336993,1.10232811,2372.6,2372.2,0.7745]
[1725994337192,1.10232811,2372.5,2372.2,0.7745]
[1725994337495,0.42149,2372.4,2372.2,1.19602]
[1725994337697,1.10232811,2372.5,2372.3,0.4215]
[1725994337886,1.52378811,2372.6,2372.3,0.42151]
[1725994338195,1.52378811,2372.6,2372.2,0.7745]
[1725994338196,0.42147,2372.5,2372.2,1.19601]
[1725994338382,1.10232811,2372.6,2372.4,0.42148]
[1725994338586,1.10232811,2372.6,2372.2,0.7745]
[1725994338788,0.42147,2372.5,2372.2,0.7745]
[1725994339091,1.10232811,2372.6,2372.3,0.4215]
[1725994339092,1.52378811,2372.6,2372.3,0.4215]
[1725994339297,1.52378811,2372.6,2372.4,0.42149]
[1725994339692,1.52378811,2372.6,2372.2,0.7745]
[1725994339693,0.42147,2372.5,2372.3,0.42149]
[1725994340195,1.10232811,2372.7,2372.5,0.42147]
[1725994340395,1.10232811,2372.7,2372.6,0.42145]
[1725994340596,1.52374811,2372.8,2372.6,0.42145]
[1725994340790,1.10232811,2372.8,2372.3,3.29]
[1725994340994,1.10232811,2372.8,2372.7,0.42143]
[1725994341191,1.10232811,2372.9,2372.8,0.42142]
[1725994341394,1.52372811,2372.9,2372.7,0.42142]
[1725994341994,1.10232811,2372.8,2372.3,3.29]
[1725994342198,0.42145,2372.6,2372.3,3.29]
[1725994342393,3.29,2372.5,2371.8,1.62118363]
[1725994342694,0.42159,2371.8,2371.7,0.7671]
[1725994342901,0.42159,2371.8,2371.7,1.18871]
[1725994343101,0.42159,2371.8,2371.7,4.9831]
[1725994343295,0.42159,2371.8,2371.7,5.40471]
[1725994343998,1.10232811,2372.1,2371.9,0.42157]
[1725994343999,1.52387811,2372.1,2371.9,0.42157]
[1725994344203,0.42155,2372.1,2371.7,4.0571]
[1725994344399,0.42156,2372.0,2371.9,0.42157]
[1725994344698,1.10232811,2372.1,2372.0,0.42156]
[1725994344899,0.42153,2372.2,2372.1,0.42154]
[1725994345090,0.42153,2372.2,2371.9,3.29]
[1725994345091,0.42153,2372.2,2372.0,0.42154]
[1725994345400,0.42154,2372.1,2372.0,0.42154]
[1725994346498,0.42154,2372.1,2372.0,0.42156]
[1725994347298,0.42156,2372.0,2371.9,3.71157]
[1725994347494,1.10232811,2372.2,2371.7,4.0571]
[1725994347695,1.05394,2372.0,2371.7,0.42161]
[1725994347894,0.42159,2371.8,2371.7,0.4216]
[1725994348099,0.42159,2371.9,2371.7,0.4216]
[1725994348497,0.42159,2371.9,2371.6,40.8]
[1725994348699,2.15626811,2372.0,2371.7,0.4216]
[1725994348903,0.42158,2371.9,2371.8,0.42159]
[1725994349200,2.70733217,2372.2,2371.7,0.4216]
[1725994349201,0.4216,2371.8,2371.7,0.4216]
[1725994349605,0.42159,2371.8,2371.7,4.216]
[1725994349805,2.15624811,2372.0,2371.7,4.216]
[1725994349997,1.05392,2372.0,2371.6,40.8]
[1725994350198,1.05392,2372.0,2371.7,0.4216]
[1725994350399,0.42159,2371.9,2371.7,0.4216]
[1725994352004,1.10232811,2372.0,2371.7,0.4216]
[1725994352310,0.42158,2371.9,2371.7,0.4216]
[1725994352506,0.42161,2371.8,2371.6,40.8]
[1725994352912,0.42161,2371.8,2371.7,0.42161]
[1725994353103,0.42161,2371.8,2371.6,41.22162]
[1725994353304,1.10232811,2372.0,2371.7,0.4216]
[1725994353506,2.15623811,2372.0,2371.6,41.22162]
[1725994353813,0.4216,2371.8,2371.6,41.22162]
[1725994354009,1.52391811,2371.9,2371.6,40.8]
[1725994354208,0.42159,2371.8,2371.6,41.22162]
[1725994354610,0.42159,2371.8,2371.7,0.42161]
[1725994356016,0.42159,2371.8,2371.6,41.22162]
[1725994356409,0.42161,2371.7,2371.6,40.8]
[1725994356611,0.42166,2371.5,2371.3,3.71168]
[1725994356815,0.42166,2371.5,2371.4,0.50165871]
[1725994357209,0.42166,2371.5,2371.4,40.8]
[1725994357721,1.10232811,2371.5,2371.4,0.50168995]
[1725994358010,0.4217,2371.2,2371.1,8.7631]
[1725994358200,1.10232811,2371.4,2371.1,50.48661154]
[1725994358400,0.42168,2371.3,2371.1,49.98481]
[1725994358801,0.42168,2371.3,2371.2,0.4217]
[1725994359015,0.4217,2371.2,2371.1,49.5631]
[1725994359220,0.4217,2371.2,2371.1,50.06498981]
[1725994359409,0.4217,2371.2,2371.1,54.28258981]
[1725994360503,0.4217,2371.2,2371.1,53.7807]
[1725994360702,0.4217,2371.3,2371.1,54.20242]
[1725994360909,0.4217,2371.3,2371.1,50.48674119]
[1725994361216,0.4217,2371.3,2371.1,49.98482]
[1725994362514,2.53022,2371.2,2371.1,45.499]
[1725994362716,0.791,2371.2,2371.1,4.699]
[1725994363020,0.791,2371.2,2371.1,8.9166]
[1725994363221,1.84526,2371.2,2371.1,8.9166]
[1725994363424,0.791,2371.2,2371.1,8.9166]
[1725994363713,1.84526,2371.2,2371.1,8.9166]
[1725994364120,0.791,2371.2,2371.1,8.9166]
[1725994364507,1.10232811,2371.6,2371.1,8.9166]
[1725994364711,1.10232811,2371.8,2371.5,3.29]
[1725994364914,0.3914,2372.3,2371.7,3.29]
[1725994365115,1.10232811,2372.6,2372.2,3.29]
[1725994365329,0.42146,2372.6,2372.3,40.8]
[1725994365520,1.90452982,2372.8,2372.3,41.2215]
[1725994365521,0.42145,2372.7,2372.3,41.2215]
[1725994365717,0.42145,2372.7,2372.3,41.22149]
[1725994366420,0.42145,2372.7,2372.4,0.42149]
[1725994366618,0.3914,2372.8,2372.3,41.2215]
[1725994366821,0.3914,2372.8,2372.3,40.8]
[1725994366822,0.42144,2372.7,2372.3,40.8]
[1725994367222,0.42144,2372.7,2372.3,41.22149]
[1725994367520,1.44496,2372.8,2372.3,40.8]
[1725994367708,0.3914,2372.8,2372.3,40.8]
[1725994367913,0.42149,2372.4,2372.3,40.8]
[1725994368108,0.42148,2372.5,2372.3,40.8]
[1725994368309,3.29,2372.4,2372.3,40.8]
[1725994368610,1.05377,2372.3,2371.5,3.29]
[1725994368926,0.42163,2371.6,2371.5,44.09]
[1725994369314,1.05391,2372.0,2371.3,3.29]
[1725994369315,0.42167,2371.4,2371.3,3.29]
[1725994369515,0.42166,2371.5,2371.3,3.29]
[1725994370317,1.1013789,2371.8,2371.3,3.29]
[1725994370524,0.42161,2371.7,2371.5,3.29]
[1725994370720,0.42163,2371.6,2371.5,3.29]
[1725994374118,1.1013789,2371.9,2371.5,7.5068]
[1725994374324,0.42158,2371.9,2371.7,3.29]
[1725994374516,0.42159,2371.8,2371.7,3.29]
[1725994375823,1.1013789,2372.0,2371.7,3.29]
[1725994376020,0.42159,2371.8,2371.7,3.29]
[1725994378318,0.42159,2371.8,2371.7,3.71161]
[1725994378519,2.1552689,2372.1,2371.7,3.71161]
[1725994378720,0.42159,2371.9,2371.7,3.71161]
[1725994379223,0.42159,2371.8,2371.7,3.29]
[1725994381831,0.42159,2371.8,2371.7,3.71161]
[1725994382027,0.42159,2371.8,2371.7,3.29]
[1725994382719,0.42163,2371.6,2371.5,3.29]
[1725994383720,0.42159,2371.9,2371.5,7.5068]
[1725994383932,1.1013789,2372.1,2371.8,3.29]
[1725994384126,0.42152,2372.2,2372.0,3.71155]
[1725994384732,0.42154,2372.1,2372.0,3.71155]
[1725994385328,0.42156,2372.0,2371.8,3.29]
[1725994385525,0.42156,2372.0,2371.8,3.71158]
[1725994385725,0.42157,2372.0,2371.8,3.71158]
[1725994385928,0.42158,2371.9,2371.8,3.29]
[1725994386437,2.1552089,2372.2,2371.8,7.92759]
[1725994386638,0.42157,2372.0,2371.8,3.71159]
[1725994386930,0.42158,2371.9,2371.8,3.71159]
[1725994387125,0.42157,2372.0,2371.8,3.71159]
[1725994387840,1.1013789,2372.1,2371.8,3.71159]
[1725994387841,0.42158,2371.9,2371.8,3.71159]
[1725994388031,0.42158,2371.9,2371.8,3.29]
[1725994389133,2.5384489,2372.1,2371.8,3.71159]
[1725994389333,0.42158,2371.9,2371.8,3.29]
[1725994392134,2.70584836,2372.3,2371.8,15.0619165]
[1725994392135,1.1013789,2372.3,2371.8,15.0619165]
[1725994392439,1.65206836,2372.4,2372.2,3.71152]
[1725994392440,0.4215,2372.4,2372.2,3.71152]
[1725994392628,1.1013789,2372.5,2372.3,0.3804]
[1725994392830,0.42149,2372.4,2372.3,0.3804]
[1725994393633,1.1013789,2372.6,2372.3,0.3804]
[1725994393836,1.1013789,2372.8,2372.5,3.29]
[1725994394029,0.42139,2373.0,2372.7,3.71143]
[1725994394335,1.5227389,2373.2,2372.8,0.80631]
[1725994394549,1.1013789,2373.3,2373.2,0.42135]
[1725994394835,0.42127,2373.7,2373.2,3.79119413]
[1725994395038,0.42127,2373.7,2372.9,4.6057]
[1725994395039,0.42127,2373.7,2373.6,3.29]
[1725994395430,0.42127,2373.7,2373.0,0.4024]
[1725994395431,0.42133,2373.3,2373.0,0.4024]
[1725994395639,0.42136,2373.1,2373.0,3.29]
[1725994396028,0.42135,2373.2,2373.0,3.29]
[1725994396340,2.04986836,2373.6,2373.0,3.29]
[1725994396341,0.42133,2373.3,2373.0,3.29]
[1725994396531,0.42133,2373.3,2372.9,41.1849]
[1725994396532,0.42125,2373.8,2373.3,0.42132]
[1725994396738,0.42123,2373.9,2373.7,3.29]
[1725994397033,1.9203789,2374.1,2373.7,3.29]
[1725994397235,0.42121,2374.0,2373.7,3.29]
[1725994397431,0.42127,2373.7,2373.4,3.6749]
[1725994397640,0.3978,2374.1,2373.4,3.6749]
[1725994397838,1.4991789,2374.1,2373.4,3.6749]
[1725994398035,0.42123,2373.9,2373.4,4.09621]
[1725994398439,0.42121,2374.0,2373.4,4.09621]
[1725994398636,0.4212,2374.0,2373.5,0.42128]
[1725994399736,0.42122,2373.9,2373.4,4.31192844]
[1725994400140,0.42121,2374.0,2373.5,0.42129]
[1725994400346,0.42122,2373.9,2373.5,0.42129]
[1725994400845,0.42121,2374.0,2373.5,0.42129]
[1725994401643,0.42122,2374.0,2373.5,0.42128]
[1725994401843,0.42122,2373.9,2373.5,0.42128]
[1725994402851,0.42122,2373.9,2373.6,3.71127]
[1725994403045,0.42122,2374.0,2373.7,0.42126]
[1725994403244,0.42122,2374.0,2373.6,3.29]
[1725994403433,0.42122,2374.0,2373.6,3.71126]
[1725994403636,0.42122,2373.9,2373.6,3.71126]
[1725994405837,0.42122,2373.9,2373.6,3.29]
[1725994406051,0.42122,2373.9,2373.7,0.42126]
[1725994407249,0.3978,2374.1,2373.6,3.71126]
[1725994407250,0.42124,2373.8,2373.6,3.71126]
[1725994408447,0.42123,2373.9,2373.7,0.42126]
[1725994408752,0.42124,2373.8,2373.7,0.42126]
[1725994409245,0.42129,2373.5,2373.4,0.3849]
[1725994409447,0.42136,2373.1,2373.0,3.6924]
[1725994409638,1.05319,2373.6,2372.8,3.71141]
[1725994409639,1.42899,2373.4,2372.8,3.71141]
[1725994409838,0.42136,2373.2,2372.8,3.29]
[1725994410034,0.42136,2373.2,2373.0,3.71137]
[1725994410245,0.42136,2373.1,2373.0,3.71137]
[1725994410841,0.42136,2373.1,2373.0,3.29]
[1725994411047,0.42136,2373.1,2373.0,3.71138]
[1725994411846,0.42136,2373.1,2373.0,3.29]
[1725994412244,0.42136,2373.1,2373.0,3.71138]
[1725994412644,0.42136,2373.2,2373.0,3.71138]
[1725994413056,0.42136,2373.2,2373.1,0.42136]
[1725994413955,0.42136,2373.2,2373.0,3.71137]
[1725994414149,1.0532,2373.6,2373.0,3.29]
[1725994414356,1.05315,2373.7,2373.0,3.29]
[1725994414549,0.42136,2373.1,2373.0,3.71138]
[1725994414852,0.42135,2373.2,2373.1,0.42136]
[1725994416555,0.42133,2373.3,2373.2,0.42134]
[1725994416756,1.05319,2373.6,2373.2,0.42134]
[1725994416942,0.42132,2373.4,2373.2,0.42134]
[1725994417145,0.42133,2373.3,2373.2,0.42134]
[1725994417548,0.42133,2373.3,2373.0,3.29]
[1725994417549,1.05326,2373.5,2373.1,0.42135]
[1725994418155,0.4213,2373.5,2373.0,3.29]
[1725994418355,0.4213,2373.5,2373.2,3.29]
[1725994418544,0.4038,2373.8,2373.2,3.29]
[1725994418545,0.42128,2373.6,2373.2,3.29]
[1725994418853,0.4038,2373.8,2373.4,3.29]
[1725994419054,0.4038,2373.8,2373.7,0.42126]
[1725994419249,0.4038,2373.8,2373.4,3.29]
[1725994419448,1.45692,2373.8,2373.4,3.71131]
[1725994419653,1.05317,2373.7,2373.3,1.19662]
[1725994419843,0.42128,2373.6,2373.4,0.42131]
[1725994420452,0.42128,2373.6,2373.4,3.71131]
[1725994420852,0.42128,2373.6,2373.4,3.29]
[1725994421050,1.45692,2373.8,2373.5,0.42129]
[1725994421946,0.42127,2373.6,2373.5,0.42129]
[1725994422543,0.42127,2373.6,2373.4,3.7113]
[1725994422751,0.42127,2373.6,2373.4,3.29]
[1725994423156,0.42127,2373.6,2373.4,3.71129]
[1725994423656,0.42127,2373.6,2373.5,0.42129]
[1725994423855,1.45692,2373.8,2373.5,0.42129]
[1725994423856,0.42127,2373.7,2373.5,0.42129]
[1725994424750,0.42126,2373.7,2373.6,0.42127]
[1725994424951,0.42124,2373.8,2373.7,0.42125]
[1725994425151,1.05303,2374.0,2373.6,3.71126]
[1725994425361,0.42126,2373.8,2373.6,3.71126]
[1725994425749,1.05303,2374.0,2373.6,3.71126]
[1725994425952,1.05312,2373.8,2373.4,3.29]
[1725994426351,0.42131,2373.4,2373.3,0.3905]
[1725994426648,0.42131,2373.4,2373.1,0.3976]
[1725994426649,1.05328,2373.4,2373.1,0.42136]
[1725994426851,1.05321,2373.6,2373.2,0.42134]
[1725994427058,0.42133,2373.3,2373.2,3.71134]
[1725994427362,0.42132,2373.4,2373.3,0.42132]
[1725994427557,0.42133,2373.3,2373.2,3.71134]
[1725994428259,0.42133,2373.3,2373.2,3.29]
[1725994428645,0.42133,2373.3,2373.2,3.71133]
[1725994429856,0.42133,2373.3,2373.2,3.29]
[1725994431159,1.47466,2373.3,2373.2,3.29]
[1725994431357,0.42133,2373.3,2373.2,3.29]
[1725994431758,1.47466,2373.3,2373.2,3.29]
[1725994432351,0.42136,2373.1,2373.0,0.3835]
[1725994432554,0.42138,2373.0,2372.9,3.29]
[1725994432762,0.42138,2373.0,2372.9,3.7114]
[1725994432958,3.29,2373.3,2372.5,0.3694]
[1725994433165,0.42145,2372.6,2372.5,0.3694]
[1725994433460,0.42145,2372.6,2372.2,0.791]
[1725994433461,0.42147,2372.5,2372.2,4.081]
[1725994433762,0.42149,2372.4,2372.2,45.30252]
[1725994433963,0.42149,2372.4,2372.2,3.684]
[1725994433964,0.4215,2372.4,2372.2,3.684]
[1725994434165,0.42148,2372.5,2372.2,4.10552]
[1725994434356,0.42149,2372.4,2372.2,4.10552]
[1725994434762,0.42149,2372.4,2372.2,3.684]
[1725994434965,1.05364,2372.6,2372.0,49.1584]
[1725994435260,0.42152,2372.3,2372.0,49.1584]
[1725994435463,0.42145,2372.7,2372.2,3.29]
[1725994435762,0.4001,2373.0,2372.6,3.29]
[1725994435961,0.82149,2373.0,2372.7,0.42143]
[1725994436258,0.4001,2373.0,2372.6,3.29]
[1725994436464,0.42142,2372.8,2372.5,0.42146]
[1725994437062,0.42142,2372.8,2372.4,3.6641]
[1725994437363,0.4001,2373.0,2372.6,3.29]
[1725994437658,0.4214,2372.9,2372.6,3.71144]
[1725994437862,0.4214,2372.9,2372.4,0.3741]
[1725994437863,0.4214,2372.9,2372.7,0.81063]
[1725994438064,0.4214,2372.9,2372.7,4.10063]
[1725994438468,0.4214,2372.9,2372.7,3.6792]
[1725994439265,0.4214,2372.9,2372.7,4.10063]
[1725994439660,0.4214,2372.9,2372.7,3.6792]
[1725994439969,0.4214,2372.9,2372.7,4.10063]
[1725994440359,0.42139,2373.0,2372.7,3.6792]
[1725994440560,0.42139,2373.0,2372.8,0.3709]
[1725994440969,2.1547889,2373.2,2372.8,0.3709]
[1725994440970,0.4214,2372.9,2372.8,0.3709]
[1725994441353,1.1013789,2373.1,2372.8,3.6609]
[1725994441557,0.42139,2373.0,2372.8,4.08231]
[1725994441766,0.42139,2373.0,2372.8,0.3709]
[1725994441957,0.4214,2372.9,2372.8,0.3709]
[1725994447069,0.4214,2372.9,2372.8,0.79232]
[1725994447882,0.4214,2372.9,2372.8,0.3709]